bitfinex/quotes_ETHUSD_20210701
["timestamp","ask_amount","ask_price","bid_price","bid_amount"]
[1625128844370,0.01041555,2125.8,2124.8,2.21161663]
[1625128844496,0.01041555,2125.8,2125.0,5.01]
[1625128844769,0.01041555,2125.8,2125.1,0.2]
[1625128844868,0.01041555,2125.8,2125.1,14.07557626]
[1625128844971,0.01041555,2125.8,2125.2,0.15]
[1625128845168,5.55e-06,2125.8,2125.2,0.15]
[1625128845323,5.55e-06,2125.8,2125.4,5.01]
[1625128845424,5.55e-06,2125.8,2125.5,7.05101]
[1625128845527,5.55e-06,2125.8,2125.6,0.2]
[1625128845623,5.55e-06,2125.8,2125.6,7.3466]
[1625128845822,5.55e-06,2125.8,2125.6,15.3466]
[1625128846226,5.55e-06,2125.8,2125.7,4.1]
[1625128846336,0.0569,2126.0,2125.7,4.1]
[1625128846440,0.0569,2126.0,2125.8,7.05029]
[1625128846627,0.0569,2126.0,2125.9,17.16]
[1625128846826,0.0569,2126.0,2125.9,0.21]
[1625128847025,0.0569,2126.0,2125.9,0.15]
[1625128847570,0.0569,2126.0,2125.9,5.16]
[1625128847878,10.5654,2126.8,2126.0,10.45]
[1625128847975,20.4212,2126.9,2126.0,10.45]
[1625128848073,20.4212,2126.9,2126.1,0.15]
[1625128848174,7.05125,2126.5,2126.1,6.60380895]
[1625128848269,9.40131,2126.8,2126.1,6.52046568]
[1625128848472,9.40131,2126.8,2126.1,0.15]
[1625128850020,9.40131,2126.8,2126.2,5.01]
[1625128850214,7.0507,2126.7,2126.2,5.01]
[1625128850320,9.40031,2127.1,2126.2,5.01]
[1625128850917,9.40031,2127.1,2126.3,0.15]
[1625128851015,6.43414851,2127.2,2126.3,0.15]
[1625128851115,7.0505163,2127.3,2126.3,0.15]
[1625128851217,7.04938,2127.1,2126.3,7.19904]
[1625128851328,22.07553,2127.4,2126.3,7.19904]
[1625128851418,22.07553,2127.4,2126.4,0.05692257]
[1625128851517,22.07553,2127.4,2126.4,0.13692257]
[1625128851616,22.07553,2127.4,2126.4,0.23]
[1625128851815,22.07553,2127.4,2126.4,0.15]
[1625128852105,28.26461807,2127.4,2126.4,0.15]
[1625128852570,7.04882,2127.3,2126.4,7.19853]
[1625128852668,10.3225,2127.4,2126.4,7.19853]
[1625128852773,10.3225,2127.4,2126.4,0.15]
[1625128852866,10.3225,2127.4,2126.5,0.04]
[1625128852966,10.3225,2127.4,2126.5,3.4166]
[1625128853067,17.86119617,2127.5,2126.5,3.4166]
[1625128853174,17.86119617,2127.5,2126.6,0.15]
[1625128854173,24.90941617,2127.5,2126.6,0.15]
[1625128856128,24.90941617,2127.5,2126.6,7.19821]
[1625128856335,24.90941617,2127.5,2126.7,0.01078662]
[1625128856578,17.86119617,2127.5,2126.7,0.16078662]
[1625128857186,24.90941617,2127.5,2126.7,0.16078662]
[1625128858817,24.90941617,2127.5,2126.7,0.16078981]
[1625128860183,6.32823513,2127.4,2126.7,0.16078981]
[1625128860276,17.90913513,2127.4,2126.7,0.16078981]
[1625128860378,17.90913513,2127.4,2126.7,0.01078981]
[1625128860476,0.08,2127.3,2126.7,0.01078981]
[1625128860687,17.90913513,2127.4,2126.7,0.01078981]
[1625128860783,17.88770129,2127.4,2126.7,0.01078981]
[1625128860883,11.5809,2127.4,2126.7,0.01078981]
[1625128861325,17.79288148,2127.4,2126.7,0.01078981]
[1625128861418,17.53056104,2127.4,2126.7,0.01078392]
[1625128861523,17.53056104,2127.4,2126.9,2.0]
[1625128862021,17.53056104,2127.4,2126.7,0.01078392]
[1625128862820,7.04977,2127.1,2126.7,0.01078392]
[1625128863424,6.04977,2127.1,2126.7,0.01078392]
[1625128863825,6.04977,2127.1,2126.7,0.00924254]
[1625128864636,7.05031,2126.9,2126.7,0.00924254]
[1625128864724,11.54621,2126.9,2126.7,0.00924254]
[1625128864925,17.80223647,2126.9,2126.7,0.00924254]
[1625128865124,11.54621,2126.9,2126.7,0.00924254]
[1625128865423,4.4959,2126.9,2126.7,0.00924254]
[1625128866380,4.4959,2126.9,2126.7,0.00923664]
[1625128866782,6.79464004,2127.2,2126.7,0.00923664]
[1625128866882,0.15,2127.3,2126.7,0.00923664]
[1625128866983,9.40043,2127.1,2126.7,0.00923664]
[1625128867408,13.35216451,2127.4,2126.7,0.00923664]
[1625128868034,0.1,2127.3,2126.7,0.00923664]
[1625128868234,13.35216451,2127.4,2126.7,0.00923664]
[1625128868844,13.35216451,2127.4,2126.7,0.00923679]
[1625128869238,7.04974,2127.1,2126.7,0.00923679]
[1625128869336,10.70984,2127.1,2126.7,0.00923679]
[1625128871476,10.70984,2127.1,2126.7,0.00923139]
[1625128872175,6.20733896,2127.0,2126.7,0.00923139]
[1625128872326,13.25730896,2127.0,2126.7,0.00923139]
[1625128872424,7.04997,2127.0,2126.7,0.00923139]
[1625128873830,7.04997,2127.0,2126.7,0.00923133]
[1625128874584,7.04929,2127.2,2126.7,0.00923133]
[1625128876097,2.5,2127.4,2126.8,0.15]
[1625128876216,11.01119617,2127.5,2126.8,20.15]
[1625128876300,11.01119617,2127.5,2126.8,27.73388109]
[1625128876392,11.01119617,2127.5,2127.0,5.01]
[1625128876589,11.01119617,2127.5,2127.1,5.16]
[1625128876686,11.01119617,2127.5,2127.1,0.15]
[1625128877939,11.01119617,2127.5,2127.1,0.1]
[1625128878040,11.01119617,2127.5,2127.1,7.14735]
[1625128879085,11.01119617,2127.5,2127.1,7.15657083]
[1625128879186,11.01119617,2127.5,2127.2,7.04707]
[1625128879789,11.01119617,2127.5,2127.2,11.60447]
[1625128879983,11.01119617,2127.5,2127.2,17.74575851]
[1625128880183,11.01119617,2127.5,2127.2,11.60447]
[1625128880285,11.01119617,2127.5,2127.3,0.14]
[1625128880484,11.01119617,2127.5,2127.2,7.04707]
[1625128880784,11.01119617,2127.5,2127.2,6.90707]
[1625128881745,11.01119617,2127.5,2127.3,0.15]
[1625128881949,11.01119617,2127.5,2127.4,7.04618]
[1625128882150,11.01119617,2127.5,2127.4,7.19618]
[1625128884060,11.01119617,2127.5,2127.4,7.20539357]
[1625128884669,11.01119617,2127.5,2127.4,0.15921357]
[1625128884764,11.01119617,2127.5,2127.4,0.00921357]
[1625128886532,11.01119617,2127.5,2127.4,0.00920736]
[1625128886937,11.11119617,2127.5,2127.4,0.00920736]
[1625128887734,11.01119617,2127.5,2127.4,0.00920736]
[1625128889391,17.87449813,2127.5,2127.4,0.00920736]
[1625128889497,18.02449813,2127.5,2127.4,0.00920736]
[1625128889696,18.18449813,2127.5,2127.4,0.00920736]
[1625128889829,18.18449813,2127.5,2127.4,7.36e-06]
[1625128889896,20.59992506,2127.5,2126.2,10.2837]
[1625128890000,5.01,2127.3,2126.2,10.2837]
[1625128890102,5.01,2127.3,2126.0,10.4214]
[1625128890103,7.50295992,2127.2,2126.0,10.4214]
[1625128890194,4.0,2126.8,2126.0,10.4214]
[1625128890366,6.46074049,2126.7,2126.0,10.4214]
[1625128890474,7.17171199,2126.8,2126.0,10.4214]
[1625128890559,7.05142,2126.7,2126.0,10.4214]
[1625128890665,13.37801003,2126.8,2126.0,10.4214]
[1625128891655,0.00871083,2126.5,2126.0,10.4214]
[1625128891854,0.00871083,2126.5,2126.0,17.47225]
[1625128891955,0.00871083,2126.5,2126.1,0.08]
[1625128892062,0.00871083,2126.5,2126.1,5.0831]
[1625128892463,0.00871083,2126.5,2126.3,5.01]
[1625128892795,0.00871083,2126.5,2126.1,5.0031]
[1625128892998,0.00871083,2126.5,2126.2,7.04999]
[1625128893303,0.00871083,2126.5,2126.3,0.06]
[1625128893798,9.90912742,2127.2,2126.3,0.06]
[1625128893998,7.10912742,2127.2,2126.3,0.06]
[1625128894209,7.10912742,2127.2,2126.2,3.52462]
[1625128894320,7.10912742,2127.2,2126.6,7.04864]
[1625128894408,17.36343,2127.4,2126.6,10.12334]
[1625128894409,16.53757247,2127.4,2126.6,10.12334]
[1625128894509,10.3142,2127.4,2126.6,10.12334]
[1625128894614,10.3142,2127.4,2126.7,0.15]
[1625128894870,20.91389617,2127.5,2126.7,0.15]
[1625128894970,11.01119617,2127.5,2126.7,0.15]
[1625128895668,11.01119617,2127.5,2126.7,10.72212]
[1625128896475,0.0087055,2127.3,2126.7,10.72212]
[1625128897806,0.0087055,2127.3,2126.9,5.01]
[1625128898011,0.0087055,2127.3,2127.0,0.1]
[1625128898209,0.0087055,2127.3,2127.1,0.15]
[1625128898309,0.0087055,2127.3,2127.1,4.9973]
[1625128898408,11.01119617,2127.5,2127.1,4.9973]
[1625128899008,11.01119617,2127.5,2127.1,12.04443]
[1625128899111,11.01119617,2127.5,2127.1,4.8473]
[1625128901606,11.01119617,2127.5,2127.1,4.85509024]
[1625128903608,11.01119617,2127.5,2126.7,0.15]
[1625128903609,6.34776739,2127.4,2126.7,0.15]
[1625128903713,11.01119617,2127.5,2126.4,9.39818]
[1625128903714,7.49856385,2127.2,2126.4,9.39818]
[1625128903841,7.49856385,2127.2,2126.1,4.84898]
[1625128903842,7.56390659,2127.2,2126.1,4.84898]
[1625128903952,7.56390659,2127.2,2126.1,4.69898]
[1625128903953,7.75390659,2127.2,2126.1,4.69898]
[1625128904244,6.38238702,2126.9,2126.0,17.47231]
[1625128904341,2.5,2126.7,2126.0,17.47231]
[1625128904443,2.5,2126.7,2126.0,10.4214]
[1625128904543,6.3082675,2126.6,2126.0,10.4214]
[1625128904740,2.5,2126.7,2126.0,10.4214]
[1625128905543,11.90277,2126.7,2126.0,10.4214]
[1625128906398,0.00854067,2126.5,2126.0,10.4214]
[1625128908107,0.00854067,2126.5,2126.1,6.45071325]
[1625128908206,0.00854067,2126.5,2126.2,7.04971]
[1625128908775,0.00998901,2126.3,2126.2,7.04971]
[1625128909077,0.00998901,2126.3,2126.2,7.18971]
[1625128909180,0.00998901,2126.3,2126.2,7.04971]
[1625128909482,0.00998901,2126.3,2126.1,9.39961]
[1625128909879,0.00998901,2126.3,2126.0,10.4214]
[1625128911600,0.00998207,2126.2,2126.0,10.4214]
[1625128911902,0.00998207,2126.2,2126.0,17.47248]
[1625128912606,0.00998207,2126.2,2126.1,6.2869833]
[1625128912697,3.2,2127.1,2126.1,10.7244833]
[1625128912963,20.7313,2127.2,2126.1,10.7244833]
[1625128913264,20.7313,2127.2,2126.1,10.6644833]
[1625128913465,20.7313,2127.2,2126.2,3.52471]
[1625128913565,20.7313,2127.2,2126.3,6.22416849]
[1625128913663,10.0486,2127.2,2126.3,6.22416849]
[1625128914163,10.0486,2127.2,2126.5,7.04941]
[1625128914564,17.58121,2127.3,2126.5,7.04941]
[1625128915093,17.58121,2127.3,2126.6,6.14875965]
[1625128915194,10.5318,2127.3,2126.6,16.49782263]
[1625128915292,10.5318,2127.3,2126.6,10.27944]
[1625128915391,21.58496347,2127.5,2126.6,10.27944]
[1625128915496,21.58496347,2127.5,2126.6,16.45528129]
[1625128916295,0.00831273,2127.2,2126.6,16.45528129]
[1625128916394,0.00831273,2127.2,2126.6,10.27944]
[1625128916495,0.00831273,2127.2,2126.6,16.44393662]
[1625128916594,0.00831273,2127.2,2126.6,16.61669141]
[1625128917098,0.00831273,2127.2,2126.7,0.27]
[1625128917341,0.00831273,2127.2,2126.7,3.7939]
[1625128917743,0.00831273,2127.2,2126.8,6.14956035]
[1625128918144,0.00831273,2127.2,2126.9,7.08812]
[1625128918245,2.73e-06,2127.2,2127.0,6.18800736]
[1625128918344,2.73e-06,2127.2,2127.0,6.33800736]
[1625128918442,2.73e-06,2127.2,2127.0,6.53800736]
[1625128918548,2.73e-06,2127.2,2127.1,0.18]
[1625128918646,2.73e-06,2127.2,2127.1,9.959891]
[1625128918745,2.73e-06,2127.2,2127.1,3.8866]
[1625128918844,11.01119617,2127.5,2127.1,3.8866]
[1625128919046,11.01119617,2127.5,2127.2,6.52685892]
[1625128919199,0.14770474,2128.4,2127.4,7.54729886]
[1625128919304,0.14770474,2128.4,2127.5,0.08440428]
[1625128919395,0.14770474,2128.4,2127.5,0.23440428]
[1625128919499,0.14770474,2128.4,2127.5,1.3468467]
[1625128919624,0.14770474,2128.4,2127.6,6.83928748]
[1625128919717,0.01321203,2128.4,2127.7,0.00972374]
[1625128919817,0.01321203,2128.4,2127.7,0.27972374]
[1625128920115,0.01321203,2128.4,2127.8,20.0]
[1625128920219,0.01321203,2128.4,2128.0,7.04411]
[1625128920316,0.01321203,2128.4,2128.1,7.43928496]
[1625128920411,0.01321203,2128.4,2128.1,11.86298496]
[1625128920516,0.01321203,2128.4,2128.2,3.72085]
[1625128920712,0.01321203,2128.4,2128.3,28.55]
[1625128921312,0.01321203,2128.4,2128.3,36.67]
[1625128921412,0.01321203,2128.4,2128.3,56.67]
[1625128922137,0.01321203,2128.4,2128.3,28.27]
[1625128922240,0.01321203,2128.4,2128.3,8.27]
[1625128922540,0.01321203,2128.4,2128.3,0.27]
[1625128922644,0.01321203,2128.4,2128.2,7.04169]
[1625128922793,0.01321203,2128.4,2128.1,0.0095108]
[1625128922896,0.01321203,2128.4,2127.9,0.15]
[1625128922988,0.01321203,2128.4,2127.5,6.46492492]
[1625128923094,0.01321203,2128.4,2127.9,0.15]
[1625128923990,0.00850729,2128.3,2127.9,0.15]
[1625128924510,0.00850729,2128.3,2127.9,5.16]
[1625128924608,0.00850729,2128.3,2127.9,5.01]
[1625128925158,0.00850729,2128.3,2127.9,11.189]
[1625128925461,0.00850729,2128.3,2128.0,5.21]
[1625128925759,0.00850729,2128.3,2128.0,12.254]
[1625128926160,0.00850729,2128.3,2128.0,12.054]
[1625128926399,0.00850188,2128.2,2128.0,5.01]
[1625128926500,0.00850188,2128.2,2127.9,0.189]
[1625128926599,0.00850188,2128.2,2127.8,5.16]
[1625128926897,0.00850188,2128.2,2127.9,7.04445]
[1625128927199,0.00850188,2128.2,2127.9,13.46119878]
[1625128927402,0.00850188,2128.2,2128.0,0.1]
[1625128927639,1.88e-06,2128.2,2128.0,20.25]
[1625128927732,1.88e-06,2128.2,2128.0,28.25]
[1625128927828,1.88e-06,2128.2,2128.1,0.2]
[1625128927934,1.88e-06,2128.2,2128.1,6.49016399]
[1625128928028,1.88e-06,2128.2,2128.1,6.64016399]
[1625128928825,0.01321203,2128.4,2128.1,6.64016399]
[1625128928924,0.01321203,2128.4,2128.3,22.81]
[1625128929022,0.01321203,2128.4,2128.3,27.8632]
[1625128929124,0.01321203,2128.4,2128.3,36.0132]
[1625128929227,0.01321203,2128.4,2128.3,18.2132]
[1625128929324,0.01321203,2128.4,2128.3,10.2132]
[1625128929723,0.01321203,2128.4,2128.3,10.2532]
[1625128930126,0.01321203,2128.4,2128.3,17.29575]
[1625128930327,0.01321203,2128.4,2128.3,25.29575]
[1625128930433,0.01321203,2128.4,2128.3,31.56967413]
[1625128930627,0.01321203,2128.4,2128.3,17.29575]
[1625128930726,0.01321203,2128.4,2128.3,17.14575]
[1625128930855,0.01321203,2128.4,2128.3,5.0532]
[1625128930955,0.01321203,2128.4,2128.1,6.38544722]
[1625128931053,0.01321203,2128.4,2128.1,6.31268362]
[1625128931152,0.01321203,2128.4,2128.1,7.04368]
[1625128931354,0.01321203,2128.4,2128.3,0.00933025]
[1625128933848,0.01321203,2128.4,2128.3,15.05895834]
[1625128934145,0.01321203,2128.4,2128.3,0.10933025]
[1625128934349,0.01321203,2128.4,2128.3,0.00933025]
[1625128934748,0.01321203,2128.4,2128.3,18.85208569]
[1625128934849,0.01321203,2128.4,2128.3,12.98626018]
[1625128934949,0.01321203,2128.4,2128.3,6.75933025]
[1625128935053,19.2115,2129.4,2128.3,6.75933025]
[1625128935161,0.40443001,2129.9,2128.6,28.4]
[1625128935258,0.40443001,2129.9,2129.4,2.72724647]
[1625128935372,0.40443001,2129.9,2129.6,5.01]
[1625128935472,0.23337233,2130.2,2129.6,5.01]
[1625128935621,0.23337233,2130.2,2129.7,0.15]
[1625128935720,0.01118784,2129.8,2129.7,0.15]
[1625128936518,0.01118784,2129.8,2129.7,7.13458859]
[1625128936718,0.01118784,2129.8,2129.7,0.21]
[1625128936868,0.01118784,2129.8,2129.7,14.06222363]
[1625128937170,0.01118784,2129.8,2129.7,14.00222363]
[1625128937369,0.01118784,2129.8,2129.7,11.2]
[1625128937710,0.01118784,2129.8,2129.7,17.50514721]
[1625128937812,0.01118784,2129.8,2129.7,22.95514721]
[1625128938014,0.01118784,2129.8,2129.7,37.21737084]
[1625128938111,0.01118784,2129.8,2129.7,38.69697084]
[1625128938214,4.2782716,2130.9,2129.7,58.69697084]
[1625128938316,0.01118647,2130.0,2129.9,33.41]
[1625128938514,0.01118647,2130.0,2129.9,41.56]
[1625128938613,0.01118647,2130.0,2129.9,0.15]
[1625128938713,0.01118647,2130.0,2129.9,2.95222363]
[1625128938812,0.01118647,2130.0,2129.9,9.70222363]
[1625128938911,0.01118647,2130.0,2129.9,15.81812207]
[1625128939014,0.01118647,2130.0,2129.9,24.00985279]
[1625128939115,0.01118647,2130.0,2129.9,25.16065279]
[1625128939212,0.01118647,2130.0,2129.9,24.19758279]
[1625128939415,0.01118647,2130.0,2129.9,24.23758279]
[1625128939851,0.01118647,2130.0,2129.9,32.23758279]
[1625128940157,0.01118647,2130.0,2129.9,25.72995363]
[1625128940354,0.01118647,2130.0,2129.9,31.93907301]
[1625128940450,0.01118647,2130.0,2129.9,17.72995363]
[1625128940552,0.01118647,2130.0,2129.9,16.57915363]
[1625128940851,0.01118647,2130.0,2129.9,24.57915363]
[1625128941453,0.01118647,2130.0,2129.9,24.58846539]
[1625128941656,0.01118647,2130.0,2129.9,18.03846539]
[1625128941855,0.01118647,2130.0,2129.9,7.23624176]
[1625128942120,4.71798647,2130.0,2129.9,7.23624176]
[1625128942216,4.71798647,2130.0,2129.9,0.00931176]
[1625128942696,4.56798647,2130.0,2129.9,0.15931176]
[1625128943584,4.56798647,2130.0,2129.9,2.15931176]
[1625128943785,4.56798647,2130.0,2129.9,7.16931176]
[1625128945981,4.56798647,2130.0,2129.9,9.96903538]
[1625128946080,4.2782716,2130.9,2129.9,17.71642761]
[1625128946180,4.2782716,2130.9,2130.0,7.01]
[1625128946380,4.2782716,2130.9,2130.1,5.01]
[1625128946628,4.2782716,2130.9,2130.1,5.16]
[1625128946718,4.2782716,2130.9,2130.2,5.01]
[1625128946819,4.2782716,2130.9,2130.3,5.01]
[1625128947021,4.2782716,2130.9,2130.4,0.15]
[1625128947117,4.2782716,2130.9,2130.4,7.18612]
[1625128947219,4.2782716,2130.9,2130.6,5.01]
[1625128947320,4.2782716,2130.9,2130.6,2.23186761]
[1625128947416,4.2782716,2130.9,2130.5,0.15]
[1625128948519,4.2782716,2130.9,2130.5,7.18663]
[1625128949572,4.2782716,2130.9,2130.7,5.01]
[1625128950176,4.2782716,2130.9,2130.5,5.01]
[1625128950379,4.2282716,2130.9,2130.6,0.33]
[1625128950774,4.2282716,2130.9,2130.7,7.03617]
[1625128950973,4.2282716,2130.9,2130.8,0.15]
[1625128953019,4.2282716,2130.9,2130.8,5.16]
[1625128953463,4.2282716,2130.9,2130.8,11.27783315]
[1625128953663,4.2282716,2130.9,2130.8,5.2]
[1625128954361,4.2282716,2130.9,2130.8,5.16]
[1625128955717,4.2282716,2130.9,2130.8,0.15]
[1625128956018,4.2282716,2130.9,2130.8,5.16]
[1625128956521,4.2282716,2130.9,2130.8,0.15]
[1625128956824,4.2282716,2130.9,2130.4,0.15]
[1625128956921,9.1885716,2130.9,2130.4,0.15]
[1625128957223,9.0885716,2130.9,2130.4,0.15]
[1625128957734,7.8320716,2130.9,2130.5,0.08]
[1625128957926,7.8320716,2130.9,2130.6,5.16]
[1625128958015,4.2282716,2130.9,2130.7,5.01]
[1625128958113,3.9834577,2130.9,2130.7,5.01]
[1625128958212,3.9834577,2130.9,2130.8,25.56]
[1625128958614,3.9834577,2130.9,2130.8,5.16]
[1625128958714,3.9834577,2130.9,2130.8,0.15]
[1625128959417,3.9834577,2130.9,2130.8,5.16]
[1625128959614,3.9834577,2130.9,2130.8,13.95]
[1625128959814,3.9834577,2130.9,2130.8,5.3]
[1625128960160,3.9834577,2130.9,2130.8,5.16]
[1625128960758,3.9834577,2130.9,2130.8,24.16]
[1625128960759,3.9282577,2130.9,2130.8,24.16]
[1625128960862,3.9282577,2130.9,2130.8,30.33135305]
[1625128960961,3.9282577,2130.9,2130.8,11.35886213]
[1625128961058,3.9282577,2130.9,2130.8,5.16]
[1625128961562,3.9282577,2130.9,2130.8,0.15]
[1625128961668,26.3,2130.8,2130.6,9.37908]
[1625128961771,25.2,2130.7,2129.6,2.36572604]
[1625128961876,25.2,2130.7,2129.4,10.1286]
[1625128961877,25.21720319,2130.7,2129.8,0.15]
[1625128961980,25.15940827,2130.7,2129.7,2.0]
[1625128962060,25.15940827,2130.7,2130.0,9.38374]
[1625128962162,25.15940827,2130.7,2129.7,11.72646]
[1625128962510,25.15940827,2130.7,2129.7,11.705178]
[1625128962610,25.15940827,2130.7,2129.6,0.15]
[1625128962713,25.30940827,2130.7,2129.5,10.0674]
[1625128962813,0.07416878,2130.6,2129.5,10.0674]
[1625128962910,0.16,2130.6,2129.5,10.0674]
[1625128963014,0.16,2130.6,2129.5,16.29145676]
[1625128963114,1.0095,2130.6,2129.5,16.29145676]
[1625128963310,1.0095,2130.6,2129.5,10.0674]
[1625128963816,10.39591,2130.6,2129.5,23.36743677]
[1625128963912,0.00978854,2130.5,2129.5,17.10687]
[1625128964015,1.98008854,2130.5,2129.5,7.03947]
[1625128965055,7.03989,2130.3,2129.5,7.03947]
[1625128965157,11.43459,2130.3,2129.2,11.87953]
[1625128965260,0.03420631,2130.2,2129.2,11.87953]
[1625128965455,11.46512259,2130.3,2129.2,11.87953]
[1625128965658,11.43459,2130.3,2129.2,11.87953]
[1625128965856,5.01,2130.1,2129.2,11.72953]
[1625128965957,5.01,2130.1,2129.0,17.98854373]
[1625128966157,12.07951218,2130.1,2129.3,7.04023]
[1625128966259,12.05046,2130.1,2129.3,7.04023]
[1625128966557,0.00978252,2130.0,2129.3,7.04023]
[1625128966659,1.27848252,2130.0,2129.3,7.04023]
[1625128966908,6.28848252,2130.0,2129.3,7.04023]
[1625128967606,1.27848252,2130.0,2129.3,7.04023]
[1625128968209,1.27848252,2130.0,2128.9,16.0646]
[1625128968308,1.27848252,2130.0,2129.1,5.01]
[1625128968709,0.00978252,2130.0,2129.5,7.03944]
[1625128968810,0.00978252,2130.0,2129.7,5.01]
[1625128969017,0.00978248,2129.9,2129.5,0.15]
[1625128969122,0.00978248,2129.9,2129.5,5.16]
[1625128969219,0.00978248,2129.9,2129.5,5.01]
[1625128969313,0.00978248,2129.9,2129.5,5.16]
[1625128970213,0.00978248,2129.9,2129.7,7.03885]
[1625128970412,0.00978248,2129.9,2129.7,7.09885]
[1625128970515,0.00978248,2129.9,2129.7,7.03885]
[1625128971014,0.00978248,2129.9,2129.8,0.15]
[1625128971560,6.85,2130.4,2129.8,0.15]
[1625128971762,6.85,2130.4,2130.1,7.03732]
[1625128971963,6.85,2130.4,2130.1,7.18732]
[1625128972061,20.9874577,2130.9,2130.1,7.18732]
[1625128972262,27.22983553,2130.9,2130.1,7.18732]
[1625128972462,27.22983553,2130.9,2129.9,9.38309]
[1625128972463,0.06,2130.8,2129.9,9.38309]
[1625128972562,0.06,2130.8,2129.8,0.15]
[1625128972872,7.03859,2130.7,2129.8,7.18852]
[1625128972975,6.4448507,2130.6,2129.8,7.18852]
[1625128973375,7.03859,2130.7,2129.8,7.18852]
[1625128973940,31.5446077,2130.9,2129.8,7.18852]
[1625128974042,0.00977689,2130.7,2129.8,7.18852]
[1625128976162,6.94775689,2130.8,2129.8,7.18852]
[1625128976566,0.00977092,2130.5,2129.8,7.18852]
[1625128978919,7.03818,2130.7,2129.8,7.19787172]
[1625128979119,7.03818,2130.7,2129.8,0.15935172]
[1625128979219,7.03818,2130.7,2130.0,7.03795]
[1625128980366,7.03818,2130.7,2129.8,7.19779172]
[1625128980467,11.86888,2130.7,2129.8,7.19779172]
[1625128980567,2.64,2130.6,2129.8,0.00935172]
[1625128981062,2.5,2130.6,2129.8,0.00935172]
[1625128981561,2.5,2130.6,2129.8,0.00934921]
[1625128981866,7.03919,2130.4,2129.8,0.00934921]
[1625128984017,7.03919,2130.4,2129.8,0.00934925]
[1625128984718,10.82562,2130.5,2129.8,0.00934925]
[1625128984719,1.4397,2130.5,2129.8,0.00934925]
[1625128984867,16.5,2130.6,2129.8,5.01934925]
[1625128984966,16.5,2130.6,2129.9,0.15]
[1625128985666,16.5,2130.6,2129.9,7.18817]
[1625128985870,14.0,2130.6,2129.9,7.18817]
[1625128986319,14.0,2130.6,2129.9,13.42199386]
[1625128986418,14.0,2130.6,2129.9,13.58229819]
[1625128986520,14.0,2130.6,2130.0,0.06]
[1625128986820,14.0,2130.6,2130.1,0.15]
[1625128987019,14.0,2130.6,2130.3,7.03685]
[1625128987911,14.0,2130.6,2130.4,0.15]
[1625128988007,14.0,2130.6,2130.5,12.43578]
[1625128988109,14.0,2130.6,2130.5,7.03578]
[1625128988209,14.0,2130.6,2130.5,7.18578]
[1625128988611,14.0,2130.6,2130.5,0.15]
[1625128991662,13.9,2130.6,2130.5,9.5]
[1625128991759,13.9,2130.6,2130.5,0.15]
[1625128995107,13.9,2130.6,2130.4,0.00933799]
[1625128996265,13.9,2130.6,2130.4,5.01933799]
[1625128996862,13.9,2130.6,2130.4,12.05580799]
[1625128997762,13.9,2130.6,2130.4,5.01933799]
[1625128997862,13.9,2130.6,2130.4,0.00933799]
[1625128999703,13.9,2130.6,2130.4,7.99e-06]
[1625129000005,0.06,2130.5,2130.4,7.99e-06]
[1625129000105,3.5611,2130.5,2130.4,7.99e-06]
[1625129000204,8.5711,2130.5,2130.4,7.99e-06]
[1625129000304,8.7211,2130.5,2130.4,7.99e-06]
[1625129000678,1.1815,2130.3,2129.1,0.15]
[1625129000779,1.1815,2130.3,2128.9,20.1007]
[1625129000780,0.09656647,2130.2,2128.9,20.1007]
[1625129000872,8.07434325,2130.2,2128.9,20.1007]
[1625129000973,2.7,2129.5,2128.7,2.64330003]
[1625129001072,6.62761992,2129.4,2128.5,0.15]
[1625129001172,0.04252654,2129.3,2128.5,0.15]
[1625129001275,0.04252654,2129.3,2128.1,31.2151]
[1625129001376,0.04252654,2129.3,2128.2,0.15]
[1625129001770,0.04866009,2129.3,2128.2,0.15]
[1625129002172,7.0435,2129.1,2128.2,7.19321]
[1625129002272,6.80340321,2129.0,2128.2,0.15]
[1625129002372,0.02892011,2128.9,2128.0,0.05]
[1625129002974,0.29759906,2128.6,2128.0,0.0001]
[1625129003077,31.17919328,2128.1,2128.0,0.0001]
[1625129003175,34.06121903,2128.1,2128.0,0.0001]
[1625129003370,34.14121903,2128.1,2128.0,0.0001]
[1625129003468,27.645,2128.1,2128.0,0.0001]
[1625129003671,33.82695497,2128.1,2128.0,0.0001]
[1625129004575,38.98695497,2128.1,2128.0,0.0001]
[1625129004878,46.98695497,2128.1,2128.0,0.0001]
[1625129004974,48.37925497,2128.1,2128.0,0.0001]
[1625129005074,56.37925497,2128.1,2128.0,0.0001]
[1625129005220,59.10898841,2128.1,2128.0,0.0001]
[1625129005820,74.10898841,2128.1,2128.0,0.0001]
[1625129006320,51.10898841,2128.1,2128.0,0.0001]
[1625129006422,51.10898841,2128.1,2128.0,10.0001]
[1625129006523,48.37925497,2128.1,2128.0,10.0001]
[1625129006621,48.38891679,2128.1,2128.0,10.0001]
[1625129006722,28.4,2128.0,2126.3,14.71580003]
[1625129006824,5.01,2127.8,2126.4,3.82649694]
[1625129006924,5.01,2127.8,2126.3,13.35680003]
[1625129006925,0.02877712,2127.7,2126.3,15.38313124]
[1625129007025,5.01,2127.8,2126.3,15.38313124]
[1625129007127,6.27504947,2127.7,2126.5,7.65330003]
[1625129007220,6.30403949,2128.0,2126.5,7.65330003]
[1625129007321,0.00660255,2128.0,2126.6,0.15]
[1625129007458,0.00660255,2128.0,2126.6,5.2]
[1625129007557,0.00660255,2128.0,2126.6,7.22633121]
[1625129007657,0.00660255,2128.0,2126.7,2.64330003]
[1625129007758,0.00660255,2128.0,2126.8,7.04713]
[1625129007860,0.00660255,2128.0,2126.9,5.01]
[1625129007957,0.00660255,2128.0,2126.8,0.15]
[1625129008457,5.01660255,2128.0,2126.8,0.15]
[1625129008559,6.63960649,2127.9,2126.8,0.15]
[1625129008656,6.69960649,2127.9,2126.8,0.15]
[1625129008760,5.01,2127.8,2126.8,0.15]
[1625129008857,5.01,2127.7,2126.8,0.15]
[1625129009258,5.01,2127.7,2126.7,2.64330003]